bitfinex/quotes_ETHUSD_20250213
["timestamp","ask_amount","ask_price","bid_price","bid_amount"]
[1739487662119,6.54717,2669.4,2669.0,0.0566606]
[1739487662120,2.801,2669.2,2669.0,0.0566606]
[1739487662317,6.92128,2669.1,2669.0,0.0566606]
[1739487662633,16.30328,2669.1,2669.0,0.0566606]
[1739487663362,6.92128,2669.1,2669.0,0.0566606]
[1739487664286,7.19969298,2669.1,2669.0,0.0566606]
[1739487666555,16.58169298,2669.1,2669.0,0.0566606]
[1739487666886,12.83511298,2669.1,2669.0,0.0566606]
[1739487667088,7.19969298,2669.1,2669.0,0.0566606]
[1739487667410,7.19969298,2669.1,2669.0,0.10950229]
[1739487667631,3.72311298,2669.1,2669.0,0.10950229]
[1739487667948,0.27841298,2669.1,2669.0,0.10950229]
[1739487669295,0.27,2669.2,2669.0,0.10950229]
[1739487669747,0.0075,2669.1,2669.0,0.10950229]
[1739487670196,0.27,2669.2,2669.0,0.10950229]
[1739487671089,0.55,2669.1,2669.0,0.10950229]
[1739487671456,0.27,2669.8,2669.4,3.74613]
[1739487671675,0.27,2670.0,2669.5,9.5576]
[1739487671949,0.27,2670.0,2669.6,8.75]
[1739487672299,0.27,2670.3,2669.7,8.75]
[1739487672498,0.27,2670.3,2669.9,0.8168]
[1739487672798,0.27,2670.3,2670.0,0.05228948]
[1739487673196,0.55,2670.3,2670.0,0.05228948]
[1739487675522,0.55,2670.3,2670.0,0.81373243]
[1739487675736,3.23628315,2670.4,2670.2,3.74501]
[1739487675904,3.23628315,2670.4,2670.3,12.5172]
[1739487676098,0.27,2671.4,2670.5,3.74454]
[1739487676342,0.27,2671.4,2670.6,8.75]
[1739487676343,0.015,2671.3,2670.6,8.75]
[1739487676495,0.015,2671.3,2670.6,8.80157567]
[1739487676695,0.565,2671.3,2670.6,8.80157567]
[1739487676896,3.75854,2671.3,2670.6,8.80157567]
[1739487677537,0.0075,2671.1,2670.6,8.80157567]
[1739487678302,0.5575,2671.1,2670.6,8.80157567]
[1739487681954,0.0075,2671.2,2670.7,0.7862]
[1739487682114,0.0075,2671.2,2670.7,9.5362]
[1739487682452,0.55,2671.3,2670.8,0.05110953]
[1739487682655,0.55,2671.3,2670.8,8.80110953]
[1739487682822,0.55,2671.3,2670.8,8.75]
[1739487683025,4.10199,2671.5,2670.9,0.05110953]
[1739487683230,4.37199,2671.5,2670.9,0.05110953]
[1739487683430,0.565,2671.4,2670.9,0.05110953]
[1739487684345,0.565,2671.4,2670.8,8.75]
[1739487684652,0.5575,2671.4,2670.8,8.75]
[1739487684860,0.5575,2671.4,2670.9,1.37607162]
[1739487685361,0.5575,2671.4,2671.0,8.75]
[1739487685914,0.5575,2671.4,2671.1,0.04801862]
[1739487686114,0.5575,2671.4,2671.1,8.79801862]
[1739487686884,2.251,2671.3,2671.1,8.79801862]
[1739487687030,0.55,2671.2,2671.1,8.79801862]
[1739487689118,2.251,2671.5,2671.1,8.79801862]
[1739487689456,2.251,2671.5,2671.2,0.8254]
[1739487689675,0.55,2671.4,2671.2,0.8254]
[1739487689995,0.55,2671.4,2671.3,0.04775233]
[1739487690287,0.55,2671.4,2671.2,0.8254]
[1739487690589,0.55,2671.4,2671.3,0.04775233]
[1739487690954,0.55,2671.4,2671.3,8.75]
[1739487691295,0.55,2671.4,2671.3,8.79775233]
[1739487696767,2.801,2671.4,2671.3,8.79775233]
[1739487701624,3.74299,2671.7,2671.3,8.79775233]
[1739487701625,2.251,2671.9,2671.4,0.7788]
[1739487701938,2.18405989,2672.3,2671.7,0.8179]
[1739487701939,0.3587,2672.3,2671.7,0.8179]
[1739487702066,0.3587,2672.3,2671.8,8.75]
[1739487702428,0.3587,2672.3,2671.8,12.53985672]
[1739487702711,2.6097,2672.3,2671.8,12.53985672]
[1739487703014,0.27929862,2672.2,2671.9,3.74265]
[1739487703220,0.27929862,2672.2,2672.0,8.79684906]
[1739487703779,2.251,2672.3,2672.0,8.79684906]
[1739487704384,0.55,2672.2,2672.0,8.79684906]
[1739487705546,0.55,2672.2,2672.1,0.785]
[1739487706122,0.55,2672.2,2672.1,0.83184906]
[1739487706801,0.3662,2672.6,2672.1,0.83184906]
[1739487707007,0.0075,2672.6,2672.1,5.56982527]
[1739487707809,0.55,2672.4,2672.1,5.56982527]
[1739487708104,0.55,2672.4,2672.1,1.79003397]
[1739487708311,0.55,2672.4,2672.1,5.53240397]
[1739487708497,0.55,2672.4,2672.1,1.79003397]
[1739487708830,0.55,2672.4,2672.2,9.21498232]
[1739487708989,0.55,2672.4,2672.3,0.04911195]
[1739487709190,0.55,2672.4,2672.3,8.75]
[1739487709398,2.5303379,2672.5,2672.3,8.79911195]
[1739487709399,0.2793379,2672.5,2672.3,8.79911195]
[1739487709606,2.251,2672.9,2672.5,0.7904]
[1739487709833,0.55,2672.8,2672.5,0.82781475]
[1739487710008,0.55,2672.8,2672.6,0.04846288]
[1739487713436,3.26215596,2673.2,2672.8,3.0]
[1739487713732,3.26215596,2673.2,2673.0,6.74104]
[1739487713931,4.24263316,2673.9,2673.2,3.7576]
[1739487714137,7.98250316,2673.9,2673.3,8.75]
[1739487714336,4.36957,2673.9,2673.3,8.75]
[1739487714533,2.8807,2673.9,2673.4,0.04825828]
[1739487714696,0.3662,2674.2,2673.5,3.74041]
[1739487714895,4.0977,2674.6,2673.8,3.0]
[1739487715235,4.09769,2674.6,2673.9,8.78739435]
[1739487715534,2.251,2674.5,2674.0,0.04601857]
[1739487716093,0.55,2674.4,2674.0,0.04601857]
[1739487716322,4.28957,2674.1,2674.0,0.04601857]
[1739487716533,6.91427,2674.1,2674.0,0.04601857]
[1739487717033,6.54085,2673.9,2673.8,8.75]
[1739487717235,0.55,2673.7,2673.5,8.75]
[1739487717442,2.801,2673.7,2673.5,8.75]
[1739487717934,6.54119,2673.7,2673.5,8.75]
[1739487718098,0.0075,2673.6,2673.5,8.75]
[1739487718845,0.55,2673.7,2673.5,8.75]
[1739487720544,0.55,2673.7,2672.7,0.8007]
[1739487720545,2.8085,2673.6,2672.7,0.8007]
[1739487720773,2.8085,2673.6,2672.8,8.75]
[1739487720774,2.251,2673.2,2672.8,8.75]
[1739487720981,0.55,2673.1,2672.8,8.75]
[1739487721102,2.801,2673.1,2672.8,8.75]
[1739487721918,6.35081,2673.0,2672.9,8.75]
[1739487722130,3.1672,2673.0,2672.9,8.75]
[1739487722348,6.90831,2673.0,2672.9,8.75]
[1739487723005,10.52124316,2673.0,2672.9,8.75]
[1739487723239,0.5575,2672.9,2672.6,8.75]
[1739487723402,6.8219,2672.8,2672.7,8.75]
[1739487723606,0.55,2672.6,2672.4,8.75]
[1739487724143,4.29176,2672.6,2672.4,8.75]
[1739487724910,0.55,2672.6,2672.4,8.75]
[1739487725306,3.61293316,2673.3,2672.7,3.7414]
[1739487725511,3.61293316,2673.6,2672.8,12.52878541]
[1739487725755,3.61293316,2673.6,2672.9,13.28547]
[1739487726248,0.55,2673.5,2673.0,12.52851487]
[1739487726452,2.251,2673.9,2673.2,0.8094]
[1739487726655,2.251,2674.0,2673.4,3.0]
[1739487726954,2.251,2674.0,2673.5,8.75]
[1739487727253,2.801,2673.9,2673.5,8.75]
[1739487727684,2.801,2673.9,2673.3,3.74062]
[1739487727685,2.251,2673.9,2673.6,11.75]
[1739487727909,2.251,2674.2,2673.8,4.52319]
[1739487728115,2.251,2674.2,2673.8,0.7833]
[1739487728411,2.251,2674.2,2673.9,0.03739446]
[1739487728770,2.251,2674.2,2673.8,3.7833]
[1739487728988,0.55,2674.2,2673.8,3.7833]
[1739487729166,2.801,2674.2,2673.8,9.642133]
[1739487729510,2.801,2674.2,2673.9,0.03832867]
[1739487729950,10.15348316,2674.2,2673.9,0.03832867]
[1739487730147,2.801,2674.0,2673.9,0.03832867]
[1739487730385,2.801,2674.0,2673.9,0.38596076]
[1739487732109,2.801,2674.0,2673.9,0.03832867]
[1739487732448,2.801,2674.0,2673.9,11.78832867]
[1739487732648,6.54071,2674.0,2673.9,8.78832867]
[1739487733806,6.55571,2674.0,2673.9,0.03832867]
[1739487734153,2.251,2673.4,2673.3,8.75]
[1739487734358,2.801,2673.4,2673.3,8.75]
[1739487738640,3.61293316,2674.2,2673.3,9.625]
[1739487738759,2.249,2673.8,2673.5,3.74041]
[1739487738965,2.249,2673.8,2673.5,7.48068]
[1739487739296,2.249,2673.8,2673.6,3.74026]
[1739487739526,2.249,2673.8,2673.7,3.74013]
[1739487739658,2.522,2674.4,2673.8,3.0]
[1739487739871,2.522,2674.4,2673.9,0.7867]
[1739487740086,2.522,2674.4,2674.0,8.75]
[1739487740800,2.799,2674.3,2674.1,0.34878681]
[1739487742489,6.5383,2674.3,2674.2,0.34878681]
[1739487744017,2.799,2674.3,2674.2,0.34878681]
[1739487744510,2.799,2674.3,2674.2,8.78573609]
[1739487745520,2.249,2674.3,2674.2,8.78573609]
[1739487745802,2.249,2674.3,2674.2,9.1345229]
[1739487746569,2.249,2674.4,2674.2,9.1345229]
[1739487747114,3.61293316,2674.5,2674.2,9.1345229]
[1739487747409,2.799,2674.5,2674.2,9.69918838]
[1739487747713,2.799,2674.5,2674.2,8.78573609]
[1739487749210,3.73928,2674.4,2674.2,8.78573609]
[1739487749410,2.799,2674.3,2674.2,8.78573609]
[1739487749610,2.799,2674.3,2674.2,8.75]
[1739487749611,6.53829,2674.3,2674.2,8.75]
[1739487749987,6.55329,2674.3,2674.2,8.75]
[1739487750329,6.91199,2674.3,2674.2,5.25]
[1739487750685,6.91199,2674.3,2673.5,3.0]
[1739487750929,6.53907,2673.8,2673.5,3.0]
[1739487751137,6.53907,2673.8,2673.6,8.75]
[1739487751328,2.799,2673.8,2673.6,8.75]
[1739487752400,6.54663,2673.7,2673.6,8.75]
[1739487752605,10.43906316,2673.7,2673.6,8.75]
[1739487753508,10.43906316,2673.7,2673.0,5.25]
[1739487753509,5.98983,2673.2,2673.1,8.75]
[1739487753731,6.53983,2673.2,2673.1,8.75]
[1739487754421,2.799,2673.2,2673.1,8.75]
[1739487754921,6.53983,2673.2,2673.1,8.75]
[1739487755245,6.54733,2673.2,2673.1,8.75]
[1739487756746,0.55,2673.2,2673.1,8.75]
[1739487757048,0.55,2673.2,2673.1,9.5739]
[1739487757342,4.09889,2673.7,2673.1,9.5739]
[1739487757343,0.3587,2674.1,2673.3,3.7406]
[1739487757555,3.73988,2673.9,2673.4,14.0]
[1739487757956,0.55,2673.8,2673.4,14.0]
[1739487758152,2.249,2673.9,2673.4,14.0]
[1739487758316,2.249,2673.9,2673.5,1.77406]
[1739487758835,0.55,2673.6,2673.5,2.12336223]
[1739487759648,7.35286316,2673.9,2673.5,2.15867128]
[1739487759649,5.98889,2673.9,2673.5,2.15867128]
[1739487759851,5.98889,2673.9,2673.6,0.7622]
[1739487760009,4.01225,2674.4,2673.8,3.0]
[1739487760206,3.73942,2674.3,2673.8,4.77980309]
[1739487760553,0.55,2674.2,2673.9,0.03584036]
[1739487760716,0.55,2674.2,2674.0,14.0]
[1739487761344,4.28948,2674.2,2674.1,0.03584036]
[1739487762338,6.54598,2674.2,2674.1,0.03584036]
[1739487762543,6.91218,2674.2,2674.1,0.03584036]
[1739487762851,6.54607,2674.1,2674.0,14.0]
[1739487763910,2.249,2674.2,2674.1,3.73957]
[1739487764116,3.73902,2674.5,2674.1,2.903526]
[1739487764343,3.73902,2674.5,2674.1,2.93929045]
[1739487764716,3.73883,2674.7,2674.1,2.93929045]
[1739487764949,3.73822,2675.1,2674.3,3.0]
[1739487765147,3.73839,2675.0,2674.5,3.7831]
[1739487765472,3.73884,2674.7,2674.5,3.7831]
[1739487765975,6.53787,2674.6,2674.5,0.7831]
[1739487766172,6.53801,2674.5,2674.4,14.0]
[1739487769477,6.54551,2674.5,2674.4,14.0]
[1739487769686,6.55301,2674.5,2674.4,14.0]
[1739487771477,6.55301,2674.5,2674.4,5.25]
[1739487772054,2.249,2674.7,2674.4,5.25]
[1739487772246,2.249,2674.7,2674.5,1.3198]
[1739487772587,4.28887,2674.6,2674.5,0.7948]
[1739487772886,0.55,2674.5,2674.4,5.25]
[1739487773086,0.55,2674.6,2674.4,5.25]
[1739487773243,6.54551,2674.5,2674.4,5.25]
[1739487775482,6.91171,2674.5,2674.4,5.25]
[1739487775790,6.00385,2673.9,2673.8,8.75]
[1739487776089,0.55,2673.3,2673.2,0.8293]
[1739487776241,4.29069,2673.3,2673.2,9.5793]
[1739487776441,4.29069,2673.3,2673.2,8.75]
[1739487776842,6.53969,2673.3,2673.2,8.75]
[1739487777043,2.799,2673.3,2673.2,8.75]
[1739487778037,2.249,2673.8,2673.2,9.776084]
[1739487778241,3.73993,2673.9,2673.3,0.8253]
[1739487778440,3.73933,2674.3,2673.5,0.7729]
[1739487778441,3.73965,2674.1,2673.5,0.7729]
[1739487778744,3.73965,2674.1,2673.6,0.03739862]
[1739487778973,0.5575,2674.2,2673.6,0.99342848]
[1739487779176,2.8065,2674.2,2673.6,4.73369848]
[1739487779488,6.54595,2674.2,2673.6,4.73369848]
[1739487779779,0.55,2673.9,2673.6,0.95602986]
[1739487779979,3.73958,2674.1,2673.6,0.95602986]
[1739487780189,7.47873,2674.3,2673.7,0.92095099]
[1739487780359,2.249,2674.3,2673.7,0.92095099]
[1739487780563,7.47926,2674.1,2673.6,0.95602986]
[1739487780950,3.73972,2674.0,2673.6,0.95602986]
[1739487781463,0.55,2673.9,2673.6,0.95602986]
[1739487781789,4.29027,2673.6,2673.5,1.12196995]
[1739487782138,4.29027,2673.6,2673.5,0.34906995]
[1739487782693,4.29027,2673.6,2673.4,8.75]
[1739487782694,4.29791,2673.5,2673.4,8.75]
[1739487782846,4.29083,2673.2,2673.1,8.75]
[1739487783048,4.29083,2673.2,2673.1,14.0]
[1739487783409,6.53983,2673.2,2673.1,14.0]
[1739487784075,6.54733,2673.2,2673.1,14.0]
[1739487785163,6.54733,2673.2,2673.1,14.03837283]
[1739487785778,2.799,2673.2,2673.1,14.03837283]
[1739487786094,5.98956,2673.4,2673.1,16.22621011]
[1739487786388,7.75804,2673.5,2673.1,16.22621011]
[1739487786590,3.74021,2673.7,2673.2,3.0]
[1739487786746,4.01699,2673.8,2673.2,3.0]
[1739487786946,2.249,2673.5,2673.3,15.9595624]
[1739487788793,2.799,2673.4,2673.3,15.9595624]
[1739487788955,6.53955,2673.4,2673.3,14.03694139]
[1739487789296,6.54705,2673.4,2673.3,14.03694139]
[1739487790603,6.54705,2673.4,2673.3,14.0]
[1739487790604,6.55455,2673.4,2673.3,14.0]
[1739487792101,6.55455,2673.4,2673.3,5.25]
[1739487797906,0.015,2673.3,2672.7,5.25]
[1739487798087,6.54039,2672.8,2672.7,5.25]
[1739487798283,6.54039,2672.8,2672.7,14.0]
[1739487798488,6.54789,2672.8,2672.7,5.25]
[1739487798874,6.55539,2672.8,2672.7,5.25]
[1739487799401,2.799,2672.8,2672.7,5.25]
[1739487799575,5.99006,2673.1,2672.7,7.4208]
[1739487799911,2.249,2673.1,2672.9,0.7708]
[1739487800089,2.249,2673.1,2673.0,14.0]
[1739487800601,2.799,2673.1,2673.0,14.0]
[1739487803028,2.8065,2673.1,2673.0,14.0]
[1739487803222,6.54747,2673.1,2673.0,14.0]
[1739487803950,6.54747,2673.1,2673.0,5.25]
[1739487807022,2.799,2673.1,2673.0,5.25]
[1739487807327,6.53997,2673.1,2673.0,5.25]
[1739487808384,2.799,2673.1,2673.0,5.25]
[1739487808623,3.61664445,2673.5,2673.0,16.1724]
[1739487808624,2.249,2673.4,2673.0,16.1724]
[1739487808924,2.0,2674.1,2673.2,0.7724]
[1739487808925,4.01722,2673.7,2673.2,0.7724]
[1739487809125,4.01722,2673.7,2673.3,14.0]
[1739487809683,6.26622,2673.7,2673.3,14.0]
[1739487809890,0.55,2673.6,2673.3,14.0]
[1739487810090,0.55,2673.6,2673.3,16.151322]
[1739487810315,3.74004,2673.8,2673.4,17.0]
[1739487810532,3.74004,2673.8,2673.5,0.7724]
[1739487811034,0.55,2673.7,2673.5,0.7724]
[1739487811734,0.55,2673.7,2673.5,1.12216655]
[1739487811936,3.74027,2673.6,2673.5,1.12216655]
[1739487812229,0.55,2673.7,2673.5,1.12216655]
[1739487812415,3.74027,2673.6,2673.5,1.12216655]
[1739487813029,4.29027,2673.6,2673.5,1.12216655]
[1739487813353,5.98915,2673.7,2673.5,1.12216655]
[1739487813693,4.29027,2673.6,2673.5,1.12216655]
[1739487814003,6.54677,2673.6,2673.5,0.34976655]
[1739487814210,6.55427,2673.6,2673.5,0.34976655]
[1739487814398,6.91297,2673.6,2673.5,0.34976655]
[1739487814598,6.91297,2673.6,2673.5,6.55e-06]
[1739487814800,6.55441,2673.5,2673.4,1.50944655]
[1739487814994,10.16355445,2673.5,2673.4,6.55e-06]
[1739487815721,10.7543626,2673.5,2673.4,6.55e-06]
[1739487819616,22.1213626,2673.5,2673.4,6.55e-06]
[1739487821490,22.4800626,2673.5,2673.4,6.55e-06]
[1739487823181,25.4800626,2673.5,2673.4,6.55e-06]
[1739487824901,10.4728626,2673.5,2673.4,6.55e-06]
[1739487825901,10.1893626,2673.5,2673.4,6.55e-06]
[1739487826107,5.98941,2673.5,2673.4,0.75680655]
[1739487827264,10.7468626,2673.5,2673.4,6.55e-06]
[1739487829008,10.7543626,2673.5,2673.4,6.55e-06]
[1739487830611,22.4800626,2673.5,2673.4,6.55e-06]
[1739487831393,25.4800626,2673.5,2673.4,6.55e-06]
[1739487832436,0.0075,2673.1,2672.7,5.25]
[1739487832631,4.29889,2672.8,2672.7,5.25]
[1739487832935,4.57489,2672.8,2672.7,5.25]
[1739487833493,3.74127,2672.9,2672.7,5.25]
[1739487833494,4.1999526,2673.0,2672.7,5.25]
[1739487833812,4.01719,2673.0,2672.8,6.0336]
[1739487835047,3.74092,2673.2,2672.8,6.0336]
[1739487835342,0.2835,2673.4,2672.9,0.8178]
[1739487835484,3.741,2673.1,2672.9,0.8178]
[1739487835685,4.291,2673.1,2673.0,0.60678]
[1739487836045,5.99011,2673.0,2672.9,0.8178]
[1739487839218,2.249,2673.0,2672.9,0.8178]
[1739487839719,2.249,2673.2,2673.0,0.803]
[1739487840090,2.249,2673.2,2673.0,4.5441]
[1739487840543,2.249,2673.2,2673.0,0.803]
[1739487840843,2.249,2673.2,2673.0,2.07166311]
[1739487841201,2.799,2673.2,2673.0,2.07166311]
[1739487842024,10.28077,2673.2,2673.0,2.07166311]
[1739487842348,5.98997,2673.1,2673.0,2.07166311]
[1739487842550,5.98997,2673.1,2673.0,0.803]
[1739487843655,6.54761,2673.0,2672.9,14.0]
[1739487844006,6.54761,2673.0,2672.9,5.25]
[1739487846834,6.54761,2673.0,2672.5,0.7674]
[1739487846835,6.55511,2673.0,2672.6,5.25]
[1739487847137,6.54803,2672.7,2672.6,5.25]
[1739487847341,6.82303,2672.7,2672.6,5.25]
[1739487847857,2.799,2672.7,2672.6,5.25]
[1739487848026,2.799,2672.7,2672.6,6.0694]
[1739487848217,2.799,2672.7,2672.6,9.81107]
[1739487848642,2.799,2672.7,2672.6,6.0694]
[1739487849043,2.249,2672.9,2672.6,9.81107]
[1739487849226,2.249,2672.9,2672.6,16.174698]
[1739487849431,2.249,2672.9,2672.6,19.916248]
[1739487849656,2.249,2672.9,2672.7,3.74151]
[1739487849819,2.249,2672.7,2672.6,5.25]
[1739487850016,6.54053,2672.7,2672.6,5.25]
[1739487851791,6.54803,2672.7,2672.6,5.25]
[1739487853264,6.55553,2672.7,2672.6,5.25]
[1739487857255,0.0075,2672.5,2672.0,6.0741]
[1739487857481,6.54137,2672.1,2672.0,9.0741]
[1739487858212,6.54887,2672.1,2672.0,6.0741]
[1739487858399,6.54887,2672.1,2672.0,5.25]
[1739487858599,6.54887,2672.1,2671.3,12.91874]
[1739487858600,2.249,2671.9,2671.3,12.91874]
[1739487858771,6.54235,2671.4,2671.3,4.16874]
[1739487859806,6.54235,2671.4,2671.3,3.37874]
[1739487859807,6.82585,2671.4,2671.3,3.37874]
[1739487860414,0.0075,2672.0,2671.4,0.8217]
[1739487860415,2.249,2671.6,2671.4,0.8217]
[1739487860635,2.249,2671.6,2671.5,3.798784]
[1739487860938,0.55,2671.8,2671.5,4.620484]
[1739487861101,0.55,2671.8,2671.7,3.74293]
[1739487861301,0.276,2672.2,2671.8,0.7843]
[1739487861498,0.276,2672.2,2671.9,3.74258]
[1739487861696,0.276,2672.2,2672.0,7.12124]
[1739487861944,3.075,2672.2,2672.1,0.7843]
[1739487862917,2.249,2672.6,2672.1,12.91304]
[1739487863114,2.249,2672.6,2672.3,3.74209]
[1739487863520,2.799,2672.5,2672.2,6.74214]
[1739487863843,2.799,2672.5,2672.3,1.965518]
[1739487864048,0.55,2672.6,2672.3,1.965518]
[1739487864248,2.249,2672.5,2672.3,1.965518]
[1739487866050,2.249,2672.5,2672.1,12.12874]
[1739487866051,5.99873,2672.2,2672.1,12.12874]
[1739487866252,10.15748562,2672.2,2672.1,3.37874]
[1739487867524,5.99929,2671.8,2671.7,3.37874]
[1739487868469,6.54929,2671.8,2671.7,3.37874]
[1739487869336,2.249,2672.1,2671.9,3.74263]
[1739487869536,2.249,2672.4,2672.0,6.37874]
[1739487869722,2.249,2672.4,2672.1,0.7783]
[1739487869923,2.799,2672.4,2672.2,3.74216]
[1739487870120,2.799,2672.4,2672.2,5.206308]
[1739487870577,2.249,2672.6,2672.5,3.0]
[1739487870873,7.34974562,2673.1,2672.6,0.7783]
[1739487870874,2.249,2672.7,2672.6,0.7783]
[1739487871569,2.249,2672.8,2672.6,0.7783]
[1739487872068,5.99048,2672.8,2672.6,0.7783]
[1739487872366,5.9904,2672.8,2672.6,0.7783]
[1739487872538,3.74153,2672.7,2672.6,0.7783]
[1739487873271,6.54803,2672.7,2672.5,15.12874]
[1739487873447,6.54067,2672.6,2672.5,12.12874]
[1739487873766,6.54817,2672.6,2672.5,12.12874]
[1739487874179,6.54817,2672.6,2672.5,3.37874]
[1739487878105,2.249,2672.9,2672.5,3.37874]
[1739487878261,5.99029,2672.9,2672.5,3.716614]
[1739487878461,3.74141,2672.8,2672.5,6.716614]
[1739487879394,3.7416,2672.7,2672.5,6.37874]
[1739487880050,3.74167,2672.6,2672.5,6.37874]
[1739487880651,3.74153,2672.7,2672.5,6.37874]
[1739487881065,3.74153,2672.7,2672.6,3.37874]
[1739487881484,0.55,2672.8,2672.6,3.37874]
[1739487881731,4.29141,2672.8,2672.6,3.37874]
[1739487881906,2.249,2672.7,2672.6,3.37874]
[1739487882106,5.99053,2672.7,2672.6,3.37874]
[1739487882303,2.249,2672.7,2672.6,3.37874]
[1739487882523,2.249,2672.7,2672.6,4.891614]
[1739487884235,5.99053,2672.7,2672.6,3.37874]
[1739487884599,6.54053,2672.7,2672.6,3.37874]
[1739487885099,6.54803,2672.7,2672.6,3.37874]
[1739487888960,10.74772208,2672.7,2672.6,3.37874]
[1739487892438,6.54803,2672.7,2672.6,3.37874]
[1739487892645,2.249,2672.9,2672.7,0.8244]
[1739487892953,6.54039,2672.8,2672.7,4.20314]
[1739487893173,6.54039,2672.8,2672.7,3.37874]
[1739487893484,6.54789,2672.8,2672.7,3.37874]
[1739487893679,10.15809912,2672.8,2672.7,3.37874]
[1739487896607,2.249,2672.8,2672.7,3.37874]
[1739487896891,5.99039,2672.8,2672.7,3.37874]
[1739487897013,6.54039,2672.8,2672.7,3.37874]
[1739487897589,6.54789,2672.8,2672.7,3.37874]
[1739487897879,10.51679912,2672.8,2672.7,3.37874]
[1739487898577,10.15809912,2672.8,2672.7,3.37874]
[1739487898867,10.43409912,2672.8,2672.7,3.37874]
[1739487899074,6.26639,2672.8,2672.7,3.37874]
[1739487900273,6.81639,2672.8,2672.7,3.37874]
[1739487901968,2.799,2672.8,2672.7,3.37874]
[1739487902129,6.54039,2672.8,2672.7,3.37874]
[1739487902576,2.799,2672.8,2672.7,3.37874]
[1739487903868,6.54789,2672.8,2672.7,3.37874]
[1739487904073,10.51679912,2672.8,2672.7,3.37874]
[1739487905063,10.51679912,2672.8,2672.2,3.37874]
[1739487905064,2.799,2672.3,2672.2,3.37874]
[1739487906045,6.54109,2672.3,2672.2,3.37874]
[1739487906380,2.799,2672.3,2672.2,3.37874]
[1739487906946,6.54109,2672.3,2672.2,3.37874]
[1739487907141,2.799,2672.3,2672.2,3.37874]
[1739487907347,6.54109,2672.3,2672.2,3.37874]
[1739487907556,2.799,2672.3,2672.2,3.37874]
[1739487908034,6.54109,2672.3,2672.2,3.37874]
[1739487911814,2.799,2672.3,2672.2,3.37874]
[1739487911979,3.61020912,2672.8,2672.3,3.74209]
[1739487912126,0.275,2673.0,2672.4,0.7776]
[1739487912475,3.74131,2672.9,2672.4,4.51954]
[1739487913080,2.249,2672.8,2672.4,4.51954]
[1739487913473,2.249,2672.8,2672.5,3.74173]
[1739487913474,2.799,2672.8,2672.5,3.74173]
[1739487913776,6.54041,2672.8,2672.4,0.7776]
[1739487913930,2.799,2672.8,2672.4,0.7776]
[1739487914137,6.54046,2672.8,2672.4,0.7776]
[1739487914335,5.99081,2672.5,2672.2,4.17704]
[1739487914547,2.249,2672.3,2672.2,4.17704]
[1739487914849,6.54109,2672.3,2672.2,4.17704]
[1739487917005,6.54109,2672.3,2672.2,3.37874]
[1739487917799,5.99165,2671.9,2671.8,3.37874]
[1739487918006,3.74205,2672.4,2671.8,4.15464]
[1739487918323,0.46390187,2672.8,2671.8,7.8974]
[1739487918324,7.35212912,2672.5,2671.8,7.8974]
[1739487918498,0.55,2672.1,2671.8,4.15464]
[1739487918700,3.74265,2671.9,2671.8,4.15464]
[1739487919342,6.54165,2671.9,2671.8,3.37874]
[1739487919471,0.0075,2671.8,2671.5,3.37874]
[1739487919663,6.54207,2671.6,2671.5,3.37874]
[1739487922286,2.799,2671.6,2671.5,3.37874]
[1739487922476,2.249,2671.8,2671.5,3.37874]
[1739487922689,5.99184,2671.8,2671.5,3.37874]
[1739487923625,3.74278,2671.9,2671.5,3.37874]
[1739487923626,5.99207,2671.6,2671.5,3.37874]
[1739487924520,5.99957,2671.6,2671.5,3.37874]
[1739487925512,3.74279,2671.9,2671.5,3.37874]
[1739487925920,3.74277,2671.9,2671.6,0.7649]
[1739487926226,3.74281,2671.8,2671.6,0.7649]
[1739487926384,4.30015,2672.0,2671.6,0.7649]
[1739487926583,3.74266,2671.9,2671.6,0.7649]
[1739487926897,3.74266,2671.9,2671.6,1.553596]
[1739487927692,2.249,2672.1,2671.6,1.553596]
[1739487927898,3.74279,2671.8,2671.6,0.7649]
[1739487928097,3.74293,2671.7,2671.6,0.7649]
[1739487928724,3.74293,2671.7,2671.6,4.14364]
[1739487928927,3.74281,2671.8,2671.6,4.14364]
[1739487929129,5.99171,2671.9,2671.6,4.14364]
[1739487929424,9.73447,2671.9,2671.6,4.14364]
[1739487929627,5.99171,2671.9,2671.6,4.14364]
[1739487929825,9.73445,2671.9,2671.6,4.14364]
[1739487930936,3.74287,2671.8,2671.6,4.14364]
[1739487931944,2.249,2671.7,2671.6,4.14364]
[1739487932634,2.249,2671.7,2671.6,4.25354936]
[1739487934437,5.99193,2671.7,2671.6,4.25354936]
[1739487935902,2.249,2671.7,2671.6,4.25354936]
[1739487937231,5.99193,2671.7,2671.6,4.25354936]
[1739487937605,2.249,2671.7,2671.6,4.25354936]
[1739487938409,2.6077,2671.7,2671.6,0.10990936]
[1739487938620,6.54999,2671.3,2671.2,8.75]
[1739487938821,6.54999,2671.3,2670.3,3.37367596]
[1739487938822,2.6077,2670.6,2669.6,5.25]
[1739487939028,2.249,2670.1,2669.7,4.34848]
[1739487939277,5.99421,2670.1,2669.7,0.60276]